[Event "Early-Titled-Tuesday-Blitz-April-23-2024"]
[Site "Chess.com"]
[Date "2024.04.23"]
[Round "10"]
[White "UK_23"]
[Black "GeorgiosSouleidis"]
[Result "1/2-1/2"]
[WhiteElo "2499"]
[BlackElo "2644"]
[TimeControl "180+1"]
[EndTime "10:03:45 PDT"]
[Termination "Game drawn by 50-move rule"]

1. e4 {[%clk 0:03:00.9]} 1... c5 {[%clk 0:03:00]} 2. Nf3 {[%clk 0:03:01.2]} 2...
e6 {[%clk 0:03:00.6]} 3. g3 {[%clk 0:03:01.9]} 3... Nc6 {[%clk 0:02:59.9]} 4.
Bg2 {[%clk 0:03:02.1]} 4... Nf6 {[%clk 0:03:00.6]} 5. Qe2 {[%clk 0:03:02.1]}
5... e5 {[%clk 0:02:58.8]} 6. Nc3 {[%clk 0:03:01.9]} 6... Be7 {[%clk 0:02:59.1]}
7. Nd5 {[%clk 0:03:02.1]} 7... O-O {[%clk 0:02:56.9]} 8. O-O {[%clk 0:02:59.4]}
8... d6 {[%clk 0:02:50.9]} 9. c3 {[%clk 0:02:53]} 9... Nxd5 {[%clk 0:02:43.6]}
10. exd5 {[%clk 0:02:53.9]} 10... Nb8 {[%clk 0:02:43.7]} 11. d4 {[%clk
0:02:53.6]} 11... exd4 {[%clk 0:02:35.3]} 12. cxd4 {[%clk 0:02:53.9]} 12... cxd4
{[%clk 0:02:19.5]} 13. Nxd4 {[%clk 0:02:52.9]} 13... Bf6 {[%clk 0:02:17.5]} 14.
Be3 {[%clk 0:02:50.5]} 14... Re8 {[%clk 0:02:17.4]} 15. Qc4 {[%clk 0:02:50]}
15... Nd7 {[%clk 0:02:13.1]} 16. Nb5 {[%clk 0:02:42.9]} 16... Ne5 {[%clk
0:01:33.3]} 17. Qc7 {[%clk 0:02:28.7]} 17... a6 {[%clk 0:01:33.3]} 18. Qxd8
{[%clk 0:02:19.7]} 18... Rxd8 {[%clk 0:01:34.2]} 19. Nc7 {[%clk 0:02:20.4]}
19... Rb8 {[%clk 0:01:29.8]} 20. Ba7 {[%clk 0:02:20.1]} 20... Bg4 {[%clk
0:01:27.5]} 21. Bxb8 {[%clk 0:02:17.7]} 21... Rxb8 {[%clk 0:01:28.4]} 22. f4
{[%clk 0:02:04.7]} 22... Nd3 {[%clk 0:01:23]} 23. Bf3 {[%clk 0:01:56.6]} 23...
Bh3 {[%clk 0:01:08.5]} 24. Bg2 {[%clk 0:01:41.9]} 24... Bg4 {[%clk 0:00:49.4]}
25. h3 {[%clk 0:01:17]} 25... Be2 {[%clk 0:00:45.3]} 26. b3 {[%clk 0:00:53.3]}
26... Bd4+ {[%clk 0:00:43]} 27. Kh2 {[%clk 0:00:53.2]} 27... Bxf1 {[%clk
0:00:39.3]} 28. Rxf1 {[%clk 0:00:54.1]} 28... Bb6 {[%clk 0:00:37.6]} 29. Rd1
{[%clk 0:00:48.7]} 29... Nf2 {[%clk 0:00:37.7]} 30. Rd2 {[%clk 0:00:43]} 30...
Rc8 {[%clk 0:00:37.7]} 31. Re2 {[%clk 0:00:42]} 31... Kf8 {[%clk 0:00:37]} 32.
Ne6+ {[%clk 0:00:36]} 32... fxe6 {[%clk 0:00:36.9]} 33. dxe6 {[%clk 0:00:36.9]}
33... Rc7 {[%clk 0:00:36.1]} 34. Rd2 {[%clk 0:00:32.1]} 34... Ke7 {[%clk
0:00:36]} 35. f5 {[%clk 0:00:31.5]} 35... h6 {[%clk 0:00:28.9]} 36. g4 {[%clk
0:00:31.3]} 36... Be3 {[%clk 0:00:25.6]} 37. Re2 {[%clk 0:00:30.2]} 37... Rc3
{[%clk 0:00:20.5]} 38. Bxb7 {[%clk 0:00:27.1]} 38... a5 {[%clk 0:00:20.9]} 39.
Kg2 {[%clk 0:00:23.2]} 39... Bc5 {[%clk 0:00:18.8]} 40. Bf3 {[%clk 0:00:22.2]}
40... Nd3 {[%clk 0:00:18.1]} 41. Re4 {[%clk 0:00:13.1]} 41... Rc2+ {[%clk
0:00:15]} 42. Be2 {[%clk 0:00:12.8]} 42... Rxa2 {[%clk 0:00:13.2]} 43. Kf3
{[%clk 0:00:10.5]} 43... Ne1+ {[%clk 0:00:13.5]} 44. Kg3 {[%clk 0:00:10.1]}
44... Nc2 {[%clk 0:00:12.7]} 45. Bd3 {[%clk 0:00:09.9]} 45... Nb4 {[%clk
0:00:12.2]} 46. Bc4 {[%clk 0:00:10]} 46... Rd2 {[%clk 0:00:11.7]} 47. h4 {[%clk
0:00:10.2]} 47... Rd4 {[%clk 0:00:10.7]} 48. Re2 {[%clk 0:00:10.2]} 48... Rd1
{[%clk 0:00:08.7]} 49. g5 {[%clk 0:00:10.2]} 49... hxg5 {[%clk 0:00:09.3]} 50.
hxg5 {[%clk 0:00:11.1]} 50... Nc6 {[%clk 0:00:09.7]} 51. f6+ {[%clk 0:00:10.2]}
51... gxf6 {[%clk 0:00:10]} 52. gxf6+ {[%clk 0:00:11.1]} 52... Kxf6 {[%clk
0:00:10.5]} 53. e7 {[%clk 0:00:12]} 53... Nxe7 {[%clk 0:00:10.1]} 54. Re6+
{[%clk 0:00:11.8]} 54... Kf5 {[%clk 0:00:09.8]} 55. Rxe7 {[%clk 0:00:12.3]}
55... Rg1+ {[%clk 0:00:09.8]} 56. Kh2 {[%clk 0:00:11.8]} 56... Ra1 {[%clk
0:00:09.3]} 57. Re2 {[%clk 0:00:11]} 57... Kf4 {[%clk 0:00:09]} 58. Kg2 {[%clk
0:00:11.1]} 58... Rd1 {[%clk 0:00:07.8]} 59. Re8 {[%clk 0:00:10.7]} 59... d5
{[%clk 0:00:07.7]} 60. Bb5 {[%clk 0:00:10.6]} 60... Rd2+ {[%clk 0:00:07]} 61.
Kf1 {[%clk 0:00:10.1]} 61... Bb4 {[%clk 0:00:06.7]} 62. Ba4 {[%clk 0:00:07.2]}
62... d4 {[%clk 0:00:06.6]} 63. Bb5 {[%clk 0:00:06.6]} 63... Bc3 {[%clk
0:00:06.5]} 64. Bc4 {[%clk 0:00:06.6]} 64... Rb2 {[%clk 0:00:06.6]} 65. Re6
{[%clk 0:00:05.9]} 65... Kf3 {[%clk 0:00:06.4]} 66. Rf6+ {[%clk 0:00:05.4]}
66... Ke3 {[%clk 0:00:07]} 67. Re6+ {[%clk 0:00:05.9]} 67... Kf4 {[%clk
0:00:06.1]} 68. Re8 {[%clk 0:00:05.8]} 68... Rc2 {[%clk 0:00:05.4]} 69. Rf8+
{[%clk 0:00:05.2]} 69... Ke5 {[%clk 0:00:05.4]} 70. Re8+ {[%clk 0:00:05.7]}
70... Kd6 {[%clk 0:00:05.9]} 71. Kg1 {[%clk 0:00:04.2]} 71... Rd2 {[%clk
0:00:05.9]} 72. Kf1 {[%clk 0:00:04.1]} 72... Kc5 {[%clk 0:00:06.4]} 73. Rb8
{[%clk 0:00:03.9]} 73... Rb2 {[%clk 0:00:04.9]} 74. Rb5+ {[%clk 0:00:04.1]}
74... Kd6 {[%clk 0:00:04.7]} 75. Rd5+ {[%clk 0:00:04.3]} 75... Kc6 {[%clk
0:00:05.4]} 76. Rd8 {[%clk 0:00:04.4]} 76... Kb6 {[%clk 0:00:05.8]} 77. Rd5
{[%clk 0:00:04.3]} 77... Rc2 {[%clk 0:00:04.3]} 78. Rb5+ {[%clk 0:00:04.3]}
78... Kc7 {[%clk 0:00:04.7]} 79. Rd5 {[%clk 0:00:04.6]} 79... Rc1+ {[%clk
0:00:04]} 80. Ke2 {[%clk 0:00:04]} 80... Re1+ {[%clk 0:00:04.6]} 81. Kf2 {[%clk
0:00:04.3]} 81... Re3 {[%clk 0:00:04.7]} 82. Rb5 {[%clk 0:00:04.1]} 82... Rh3
{[%clk 0:00:04.4]} 83. Rd5 {[%clk 0:00:04.2]} 83... Kb6 {[%clk 0:00:04.5]} 84.
Rb5+ {[%clk 0:00:04.2]} 84... Ka7 {[%clk 0:00:05]} 85. Rd5 {[%clk 0:00:05.1]}
85... Rh2+ {[%clk 0:00:04.7]} 86. Kf3 {[%clk 0:00:05]} 86... Rb2 {[%clk
0:00:05.1]} 87. Rb5 {[%clk 0:00:04.3]} 87... Rh2 {[%clk 0:00:04.3]} 88. Rd5
{[%clk 0:00:03.9]} 88... Rh4 {[%clk 0:00:04.5]} 89. Rb5 {[%clk 0:00:03.8]} 89...
Ka8 {[%clk 0:00:04.7]} 90. Rd5 {[%clk 0:00:04.4]} 90... Kb7 {[%clk 0:00:04.8]}
91. Rb5+ {[%clk 0:00:05.1]} 91... Kc7 {[%clk 0:00:05.2]} 92. Rd5 {[%clk
0:00:06]} 92... Kc6 {[%clk 0:00:05.5]} 93. Rb5 {[%clk 0:00:05.9]} 93... Rh8
{[%clk 0:00:04.5]} 94. Rd5 {[%clk 0:00:05.5]} 94... Re8 {[%clk 0:00:04.5]} 95.
Rb5 {[%clk 0:00:05]} 95... Re3+ {[%clk 0:00:04.4]} 96. Kf2 {[%clk 0:00:04.8]}
96... Rh3 {[%clk 0:00:04.6]} 97. Rd5 {[%clk 0:00:05]} 97... Bb2 {[%clk
0:00:04.2]} 98. Rb5 {[%clk 0:00:04.6]} 98... Bc3 {[%clk 0:00:04.3]} 99. Rd5
{[%clk 0:00:04.7]} 99... Rh2+ {[%clk 0:00:03.1]} 100. Kf3 {[%clk 0:00:05.1]}
100... Ra2 {[%clk 0:00:03.4]} 101. Rb5 {[%clk 0:00:05.2]} 101... Ra3 {[%clk
0:00:03.7]} 102. Rd5 {[%clk 0:00:05.4]} 102... Kb6 {[%clk 0:00:04.3]} 103. Rb5+
{[%clk 0:00:05.5]} 103... Kc7 {[%clk 0:00:04.9]} 104. Rd5 {[%clk 0:00:06.4]}
104... Kc8 {[%clk 0:00:05.2]} 105. Rb5 {[%clk 0:00:06.7]} 105... Kd7 {[%clk
0:00:05.5]} 106. Rd5+ {[%clk 0:00:07.4]} 106... Ke7 {[%clk 0:00:06.1]} 107. Rb5
{[%clk 0:00:08.3]} 107... Kf6 {[%clk 0:00:06.6]} 108. Rd5 {[%clk 0:00:08.9]}
108... Ra1 {[%clk 0:00:06.1]} 109. Rb5 {[%clk 0:00:09.2]} 109... Rh1 {[%clk
0:00:06.2]} 110. Rd5 {[%clk 0:00:09.7]} 110... Re1 {[%clk 0:00:06.5]} 111. Rb5
{[%clk 0:00:09.6]} 111... Re3+ {[%clk 0:00:07.4]} 112. Kf2 {[%clk 0:00:09.8]}
112... Kg6 {[%clk 0:00:07.2]} 1/2-1/2

[Event "Early-Titled-Tuesday-Blitz-April-23-2024"]
[Site "Chess.com"]
[Date "2024.04.23"]
[Round "11"]
[White "Ziyamammadov"]
[Black "SpongeBob_03"]
[Result "0-1"]
[WhiteElo "1978"]
[BlackElo "2271"]
[TimeControl "180+1"]
[EndTime "10:06:27 PDT"]
[Termination "SpongeBob_03 won by resignation"]

1. e4 {[%clk 0:03:00.9]} 1... c5 {[%clk 0:02:59.5]} 2. Nf3 {[%clk 0:02:53.9]}
2... e6 {[%clk 0:02:59.5]} 3. d4 {[%clk 0:02:54.8]} 3... cxd4 {[%clk 0:03:00.4]}
4. Nxd4 {[%clk 0:02:55.7]} 4... Nf6 {[%clk 0:03:00.5]} 5. Nc3 {[%clk 0:02:56.1]}
5... Nc6 {[%clk 0:03:01]} 6. f3 {[%clk 0:02:53.4]} 6... Bb4 {[%clk 0:02:58.4]}
7. a3 {[%clk 0:02:52.5]} 7... Bxc3+ {[%clk 0:02:58.4]} 8. bxc3 {[%clk
0:02:53.4]} 8... d5 {[%clk 0:02:59.2]} 9. exd5 {[%clk 0:02:33.1]} 9... Nxd5
{[%clk 0:02:52.4]} 10. Nxc6 {[%clk 0:02:28.6]} 10... bxc6 {[%clk 0:02:50.6]} 11.
c4 {[%clk 0:02:15.1]} 11... Qa5+ {[%clk 0:02:49.7]} 12. Bd2 {[%clk 0:01:57.6]}
12... Nc3 {[%clk 0:02:47.9]} 13. Qc1 {[%clk 0:01:55.9]} 13... Qe5+ {[%clk
0:02:45.7]} 14. Kf2 {[%clk 0:01:53.5]} 14... Qd4+ {[%clk 0:02:36.4]} 15. Be3
{[%clk 0:01:51.4]} 15... Qf6 {[%clk 0:02:37.3]} 16. Qb2 {[%clk 0:01:50.8]} 16...
Ne4+ {[%clk 0:02:33.5]} 0-1

[Event "Early-Titled-Tuesday-Blitz-April-23-2024"]
[Site "Chess.com"]
[Date "2024.04.23"]
[Round "11"]
[White "alvarorodriguezavila"]
[Black "Djager97"]
[Result "0-1"]
[WhiteElo "2350"]
[BlackElo "2534"]
[TimeControl "180+1"]
[EndTime "10:06:45 PDT"]
[Termination "Djager97 won by checkmate"]

1. e4 {[%clk 0:03:00.9]} 1... e5 {[%clk 0:03:00]} 2. Nf3 {[%clk 0:03:01.4]} 2...
Nc6 {[%clk 0:03:00.6]} 3. Bb5 {[%clk 0:03:01.5]} 3... a6 {[%clk 0:03:01]} 4. Ba4
{[%clk 0:03:01.3]} 4... Nf6 {[%clk 0:03:01.5]} 5. O-O {[%clk 0:03:01.4]} 5... b5
{[%clk 0:03:02.2]} 6. Bb3 {[%clk 0:03:01.2]} 6... Bc5 {[%clk 0:03:02.9]} 7. a4
{[%clk 0:02:56.9]} 7... Rb8 {[%clk 0:03:02]} 8. axb5 {[%clk 0:02:56]} 8... axb5
{[%clk 0:03:02.9]} 9. Nxe5 {[%clk 0:02:55]} 9... Nxe5 {[%clk 0:03:02.7]} 10. d4
{[%clk 0:02:55.8]} 10... Bxd4 {[%clk 0:03:03.1]} 11. Qxd4 {[%clk 0:02:56.6]}
11... d6 {[%clk 0:03:04]} 12. Bg5 {[%clk 0:02:48.2]} 12... c5 {[%clk 0:03:01.2]}
13. Qe3 {[%clk 0:02:48.7]} 13... O-O {[%clk 0:02:59.2]} 14. Nc3 {[%clk 0:02:47]}
14... h6 {[%clk 0:02:55.3]} 15. Bxf6 {[%clk 0:02:42.9]} 15... Qxf6 {[%clk
0:02:54.7]} 16. Nd5 {[%clk 0:02:40]} 16... Qd8 {[%clk 0:02:50]} 17. c3 {[%clk
0:02:36]} 17... Be6 {[%clk 0:02:47]} 18. Qg3 {[%clk 0:02:23]} 18... Nc4 {[%clk
0:02:37.1]} 19. Ra2 {[%clk 0:02:15.9]} 19... Bxd5 {[%clk 0:02:34.2]} 20. exd5
{[%clk 0:02:15.3]} 20... Nd2 {[%clk 0:02:34.6]} 21. Bc2 {[%clk 0:02:03.5]} 21...
Nxf1 {[%clk 0:02:34.7]} 22. Qd3 {[%clk 0:02:02.9]} 22... g6 {[%clk 0:02:30.1]}
23. Kxf1 {[%clk 0:02:03]} 23... Re8 {[%clk 0:02:24.3]} 24. Qg3 {[%clk
0:02:03.3]} 24... Qe7 {[%clk 0:02:17.4]} 25. Ra6 {[%clk 0:02:03.8]} 25... Qe1#
{[%clk 0:02:17]} 0-1

[Event "Early-Titled-Tuesday-Blitz-April-23-2024"]
[Site "Chess.com"]
[Date "2024.04.23"]
[Round "11"]
[White "mishanick"]
[Black "rezamahdavi2008"]
[Result "1-0"]
[WhiteElo "3157"]
[BlackElo "2914"]
[TimeControl "180+1"]
[EndTime "10:06:52 PDT"]
[Termination "mishanick won by resignation"]

1. d4 {[%clk 0:03:00.9]} 1... Nf6 {[%clk 0:02:59.9]} 2. c4 {[%clk 0:03:01.6]}
2... b6 {[%clk 0:02:59]} 3. f3 {[%clk 0:03:01.5]} 3... Nc6 {[%clk 0:02:47.9]} 4.
d5 {[%clk 0:02:44.4]} 4... Ne5 {[%clk 0:02:47.8]} 5. e4 {[%clk 0:02:44.3]} 5...
e6 {[%clk 0:02:47.6]} 6. Be3 {[%clk 0:02:43.9]} 6... Bb7 {[%clk 0:02:40.7]} 7.
Nc3 {[%clk 0:02:43.4]} 7... Be7 {[%clk 0:02:41.1]} 8. Nh3 {[%clk 0:02:38.8]}
8... O-O {[%clk 0:02:40.8]} 9. Be2 {[%clk 0:02:37.7]} 9... Re8 {[%clk
0:02:39.5]} 10. O-O {[%clk 0:02:37.5]} 10... exd5 {[%clk 0:02:39.5]} 11. cxd5
{[%clk 0:02:38.4]} 11... c6 {[%clk 0:02:40.4]} 12. d6 {[%clk 0:02:37.4]} 12...
Bf8 {[%clk 0:02:05.2]} 13. f4 {[%clk 0:02:36.5]} 13... Ng6 {[%clk 0:02:00.7]}
14. e5 {[%clk 0:02:37.1]} 14... Nd5 {[%clk 0:01:58.4]} 15. Nxd5 {[%clk
0:02:36.9]} 15... cxd5 {[%clk 0:01:59.3]} 16. Bd4 {[%clk 0:02:35.4]} 16... f6
{[%clk 0:01:57.3]} 17. Bh5 {[%clk 0:02:26.5]} 17... fxe5 {[%clk 0:01:54.9]} 18.
fxe5 {[%clk 0:02:27.4]} 18... Nxe5 {[%clk 0:01:46.2]} 19. Bxe8 {[%clk
0:02:26.7]} 19... Qxe8 {[%clk 0:01:47.1]} 20. Re1 {[%clk 0:02:19.7]} 20... Bxd6
{[%clk 0:01:47.2]} 21. Qe2 {[%clk 0:02:19.9]} 1-0

[Event "Early-Titled-Tuesday-Blitz-April-23-2024"]
[Site "Chess.com"]
[Date "2024.04.23"]
[Round "11"]
[White "inagreV"]
[Black "toninhojit"]
[Result "0-1"]
[WhiteElo "2405"]
[BlackElo "2554"]
[TimeControl "180+1"]
[EndTime "10:06:53 PDT"]
[Termination "toninhojit won by resignation"]

1. e4 {[%clk 0:03:00.9]} 1... c5 {[%clk 0:02:58.6]} 2. Nf3 {[%clk 0:03:01]} 2...
d6 {[%clk 0:02:56.7]} 3. d4 {[%clk 0:03:01.1]} 3... cxd4 {[%clk 0:02:57.6]} 4.
Nxd4 {[%clk 0:03:01.7]} 4... Nf6 {[%clk 0:02:58.3]} 5. Nc3 {[%clk 0:03:01.9]}
5... a6 {[%clk 0:02:59.1]} 6. a4 {[%clk 0:03:02.1]} 6... e6 {[%clk 0:02:58]} 7.
a5 {[%clk 0:03:01.5]} 7... Be7 {[%clk 0:02:58.2]} 8. Bd3 {[%clk 0:03:01]} 8...
O-O {[%clk 0:02:58.8]} 9. O-O {[%clk 0:03:01.3]} 9... Nc6 {[%clk 0:02:55]} 10.
Nxc6 {[%clk 0:03:01.4]} 10... bxc6 {[%clk 0:02:55.9]} 11. Qe2 {[%clk 0:03:01.9]}
11... d5 {[%clk 0:02:56.5]} 12. Bf4 {[%clk 0:02:44.9]} 12... c5 {[%clk
0:02:48.5]} 13. exd5 {[%clk 0:02:22.5]} 13... exd5 {[%clk 0:02:47.9]} 14. Rfe1
{[%clk 0:02:22.7]} 14... Bd6 {[%clk 0:02:42.6]} 15. Bxd6 {[%clk 0:02:17.4]}
15... Qxd6 {[%clk 0:02:43.5]} 16. Qf3 {[%clk 0:02:08.2]} 16... Bg4 {[%clk
0:02:39.8]} 17. Qg3 {[%clk 0:02:07.3]} 17... Qxg3 {[%clk 0:02:37.9]} 18. hxg3
{[%clk 0:02:08.2]} 18... c4 {[%clk 0:02:35.3]} 19. Be2 {[%clk 0:02:06.4]} 19...
Bf5 {[%clk 0:02:33.5]} 20. Bd1 {[%clk 0:01:59.9]} 20... d4 {[%clk 0:02:30.6]}
21. Ne2 {[%clk 0:01:59.1]} 21... Rad8 {[%clk 0:02:26.9]} 22. Nf4 {[%clk
0:01:54.6]} 22... g5 {[%clk 0:02:21.5]} 23. Nh5 {[%clk 0:01:51.9]} 23... Nxh5
{[%clk 0:02:20.9]} 24. Bxh5 {[%clk 0:01:52.8]} 24... Bxc2 {[%clk 0:02:21.2]} 0-1

[Event "Early-Titled-Tuesday-Blitz-April-23-2024"]
[Site "Chess.com"]
[Date "2024.04.23"]
[Round "11"]
[White "littlepinkyboy"]
[Black "Antosha_Chekhonte"]
[Result "1-0"]
[WhiteElo "2684"]
[BlackElo "2560"]
[TimeControl "180+1"]
[EndTime "10:06:55 PDT"]
[Termination "littlepinkyboy won by resignation"]

1. e4 {[%clk 0:03:00.9]} 1... c6 {[%clk 0:02:59.9]} 2. d4 {[%clk 0:03:00.8]}
2... d5 {[%clk 0:03:00.3]} 3. Nc3 {[%clk 0:03:01.5]} 3... dxe4 {[%clk
0:03:00.4]} 4. Nxe4 {[%clk 0:03:02.3]} 4... Nf6 {[%clk 0:03:01]} 5. Nxf6+ {[%clk
0:03:02.2]} 5... exf6 {[%clk 0:03:01.9]} 6. Nf3 {[%clk 0:03:02.7]} 6... Bd6
{[%clk 0:03:01.8]} 7. Be2 {[%clk 0:02:52.4]} 7... O-O {[%clk 0:03:01.4]} 8. c3
{[%clk 0:02:52.7]} 8... Re8 {[%clk 0:03:01]} 9. Qc2 {[%clk 0:02:51]} 9... Qe7
{[%clk 0:02:53.6]} 10. Be3 {[%clk 0:02:49.1]} 10... f5 {[%clk 0:02:53.9]} 11. g3
{[%clk 0:02:40.6]} 11... f4 {[%clk 0:02:44.7]} 12. gxf4 {[%clk 0:02:39.3]} 12...
Bg4 {[%clk 0:02:25.3]} 13. Ng5 {[%clk 0:02:33.5]} 13... f5 {[%clk 0:01:54.9]}
14. Bc4+ {[%clk 0:02:21]} 1-0

[Event "Early-Titled-Tuesday-Blitz-April-23-2024"]
[Site "Chess.com"]
[Date "2024.04.23"]
[Round "11"]
[White "Mikhail_Bryakin"]
[Black "FuenfgegenWilly"]
[Result "1-0"]
[WhiteElo "2820"]
[BlackElo "2486"]
[TimeControl "180+1"]
[EndTime "10:07:03 PDT"]
[Termination "Mikhail_Bryakin won by resignation"]

1. e4 {[%clk 0:02:56.4]} 1... e5 {[%clk 0:03:00]} 2. d4 {[%clk 0:02:54.8]} 2...
exd4 {[%clk 0:03:00]} 3. Qxd4 {[%clk 0:02:55.7]} 3... Nc6 {[%clk 0:02:59.9]} 4.
Qd3 {[%clk 0:02:55.5]} 4... Nf6 {[%clk 0:03:00.4]} 5. Nc3 {[%clk 0:02:56.2]}
5... Bb4 {[%clk 0:03:00.2]} 6. Bg5 {[%clk 0:02:56.8]} 6... h6 {[%clk 0:03:00.1]}
7. Bh4 {[%clk 0:02:56.6]} 7... d6 {[%clk 0:03:00.4]} 8. O-O-O {[%clk 0:02:57.2]}
8... Bxc3 {[%clk 0:02:53.9]} 9. Qxc3 {[%clk 0:02:56.8]} 9... g5 {[%clk
0:02:42.3]} 10. Bg3 {[%clk 0:02:54.3]} 10... Qe7 {[%clk 0:02:39.7]} 11. f3
{[%clk 0:02:52.8]} 11... Bd7 {[%clk 0:02:31.8]} 12. Bb5 {[%clk 0:02:52.7]} 12...
O-O-O {[%clk 0:02:07.9]} 13. Ne2 {[%clk 0:02:52]} 13... Ne5 {[%clk 0:01:57.5]}
14. Nd4 {[%clk 0:02:47.4]} 14... Bxb5 {[%clk 0:01:53.8]} 15. Nxb5 {[%clk
0:02:48.3]} 15... a6 {[%clk 0:01:52.7]} 16. Nd4 {[%clk 0:02:45.7]} 16... Kb8
{[%clk 0:01:47.8]} 17. Nf5 {[%clk 0:02:39.8]} 17... Qe6 {[%clk 0:01:48.2]} 18.
Rd2 {[%clk 0:02:37.7]} 18... Qxa2 {[%clk 0:01:44.2]} 19. b3 {[%clk 0:02:37]}
19... Qa3+ {[%clk 0:01:39.1]} 20. Kb1 {[%clk 0:02:36.6]} 20... Nfd7 {[%clk
0:01:30]} 21. Rhd1 {[%clk 0:02:36.2]} 21... Nb6 {[%clk 0:01:29.9]} 22. Bxe5
{[%clk 0:02:34.6]} 22... Na4 {[%clk 0:01:29.5]} 23. Qa1 {[%clk 0:02:33.6]} 1-0

[Event "Early-Titled-Tuesday-Blitz-April-23-2024"]
[Site "Chess.com"]
[Date "2024.04.23"]
[Round "11"]
[White "yonaltimur"]
[Black "average_trans"]
[Result "1-0"]
[WhiteElo "2401"]
[BlackElo "2244"]
[TimeControl "180+1"]
[EndTime "10:07:17 PDT"]
[Termination "yonaltimur won by resignation"]

1. e4 {[%clk 0:02:59.6]} 1... d5 {[%clk 0:02:57.5]} 2. exd5 {[%clk 0:02:59.3]}
2... Qxd5 {[%clk 0:02:58.4]} 3. Nc3 {[%clk 0:02:59.5]} 3... Qa5 {[%clk
0:02:58.4]} 4. Bc4 {[%clk 0:02:59.9]} 4... Nf6 {[%clk 0:02:58.3]} 5. d4 {[%clk
0:02:59.7]} 5... Bf5 {[%clk 0:02:58.3]} 6. Nf3 {[%clk 0:03:00.4]} 6... e6 {[%clk
0:02:58]} 7. O-O {[%clk 0:03:00.7]} 7... c6 {[%clk 0:02:58.1]} 8. Re1 {[%clk
0:02:59.7]} 8... Qc7 {[%clk 0:02:57.7]} 9. Ne5 {[%clk 0:02:56.3]} 9... Nbd7
{[%clk 0:02:55.6]} 10. Bf4 {[%clk 0:02:55.3]} 10... Bd6 {[%clk 0:02:55.2]} 11.
Bg3 {[%clk 0:02:43.8]} 11... O-O-O {[%clk 0:02:55]} 12. Nxf7 {[%clk 0:02:41.7]}
12... Bxg3 {[%clk 0:02:53.9]} 13. hxg3 {[%clk 0:02:42.6]} 13... h5 {[%clk
0:02:52.9]} 14. Nxd8 {[%clk 0:02:41.5]} 14... Kxd8 {[%clk 0:02:50.9]} 15. Bxe6
{[%clk 0:02:41]} 15... Bxe6 {[%clk 0:02:50.9]} 16. Rxe6 {[%clk 0:02:41.9]} 16...
h4 {[%clk 0:02:51.6]} 17. Qf3 {[%clk 0:02:39.6]} 17... hxg3 {[%clk 0:02:49]} 18.
Qxg3 {[%clk 0:02:40.5]} 18... Qb6 {[%clk 0:02:47.9]} 19. d5 {[%clk 0:02:39.6]}
19... Qxb2 {[%clk 0:02:38.1]} 20. Rd1 {[%clk 0:02:39.3]} 20... cxd5 {[%clk
0:02:29.6]} 21. Nxd5 {[%clk 0:02:39.2]} 21... Nxd5 {[%clk 0:02:25.1]} 22. Rd6
{[%clk 0:02:28.6]} 22... Nb6 {[%clk 0:02:18.6]} 23. Rxd7+ {[%clk 0:02:15.8]}
23... Nxd7 {[%clk 0:02:17.9]} 24. Qb8+ {[%clk 0:02:16.1]} 24... Ke7 {[%clk
0:02:18.6]} 25. Qxh8 {[%clk 0:02:16.6]} 25... a5 {[%clk 0:02:09.5]} 26. Qh4+
{[%clk 0:02:15.1]} 26... Ke8 {[%clk 0:02:08.4]} 27. Re1+ {[%clk 0:02:10.5]}
27... Ne5 {[%clk 0:02:05.4]} 28. Qh5+ {[%clk 0:02:06.8]} 1-0

[Event "Early-Titled-Tuesday-Blitz-April-23-2024"]
[Site "Chess.com"]
[Date "2024.04.23"]
[Round "11"]
[White "TokChess"]
[Black "marcodobrikov"]
[Result "1-0"]
[WhiteElo "2631"]
[BlackElo "2687"]
[TimeControl "180+1"]
[EndTime "10:07:42 PDT"]
[Termination "TokChess won by resignation"]

1. c4 {[%clk 0:03:00.9]} 1... g6 {[%clk 0:03:00.9]} 2. g3 {[%clk 0:03:01.1]}
2... Bg7 {[%clk 0:03:01.8]} 3. Bg2 {[%clk 0:03:00.3]} 3... Nf6 {[%clk
0:03:02.7]} 4. Nc3 {[%clk 0:02:59.6]} 4... O-O {[%clk 0:03:03.6]} 5. d3 {[%clk
0:02:59.6]} 5... c6 {[%clk 0:03:03.9]} 6. Nf3 {[%clk 0:02:56.8]} 6... d5 {[%clk
0:03:03.7]} 7. O-O {[%clk 0:02:57.3]} 7... Bg4 {[%clk 0:03:02.6]} 8. cxd5 {[%clk
0:02:56.1]} 8... Nxd5 {[%clk 0:03:00.4]} 9. Bd2 {[%clk 0:02:56.1]} 9... Nxc3
{[%clk 0:02:54.5]} 10. Bxc3 {[%clk 0:02:54.5]} 10... Bxc3 {[%clk 0:02:53.5]} 11.
bxc3 {[%clk 0:02:55.4]} 11... Bxf3 {[%clk 0:02:53.6]} 12. Bxf3 {[%clk
0:02:55.1]} 12... Qa5 {[%clk 0:02:53.5]} 13. Qb3 {[%clk 0:02:53.8]} 13... b6
{[%clk 0:02:48.3]} 14. Qb4 {[%clk 0:02:38.2]} 14... Qxb4 {[%clk 0:02:45.4]} 15.
cxb4 {[%clk 0:02:39.1]} 15... Na6 {[%clk 0:02:45.9]} 16. a3 {[%clk 0:02:34.4]}
16... Rac8 {[%clk 0:02:45]} 17. Rfc1 {[%clk 0:02:34.2]} 17... Nb8 {[%clk
0:02:45.3]} 18. Rc4 {[%clk 0:02:32]} 18... Rfd8 {[%clk 0:02:43.6]} 19. Rac1
{[%clk 0:02:26.6]} 19... Rd6 {[%clk 0:02:44.5]} 20. d4 {[%clk 0:02:23.4]} 20...
b5 {[%clk 0:02:41.3]} 21. Rc5 {[%clk 0:02:22.4]} 21... e6 {[%clk 0:02:40]} 22.
Rxb5 {[%clk 0:02:19.2]} 22... Rxd4 {[%clk 0:02:40.3]} 23. Rb7 {[%clk 0:02:13.5]}
23... a6 {[%clk 0:02:39.8]} 24. a4 {[%clk 0:01:59.3]} 24... a5 {[%clk
0:02:38.9]} 25. b5 {[%clk 0:01:53.8]} 25... c5 {[%clk 0:02:36.2]} 26. b6 {[%clk
0:01:45.3]} 26... Rxa4 {[%clk 0:02:36]} 27. Rc7 {[%clk 0:01:42.5]} 27... Rd8
{[%clk 0:02:35.8]} 28. b7 {[%clk 0:01:39.1]} 28... Kf8 {[%clk 0:02:29.2]} 29.
R1xc5 {[%clk 0:01:30.7]} 29... Rb4 {[%clk 0:02:29.4]} 30. Rc8 {[%clk 0:01:24]}
30... Ke7 {[%clk 0:02:23]} 31. Rxd8 {[%clk 0:01:23.1]} 31... Kxd8 {[%clk
0:02:22.7]} 32. Rc8+ {[%clk 0:01:23.2]} 32... Ke7 {[%clk 0:02:23.6]} 33. Rxb8
{[%clk 0:01:23.5]} 33... Rxb7 {[%clk 0:02:24.4]} 34. Rxb7+ {[%clk 0:01:23.5]}
1-0